[Event "76th Montenegro Championship 2024"]
[Site "Podgorica"]
[Date "2024.02.07"]
[Round "2.2"]
[White "Petrov, Nikita"]
[Black "Skvortsov, Andrei"]
[Result "1/2-1/2"]
[ECO "A22"]
[WhiteElo "2563"]
[BlackElo "2307"]
[Annotator "TA"]
[PlyCount "78"]
[EventDate "2024.02.06"]
[EventType "swiss"]
[EventCountry "MNE"]
[SourceTitle "playchess.com"]
[Source "ChessBase"]
[SourceQuality "1"]
[TimeControl "40/5400+30:1800+30"]

{[%evp 9,78,21,74,69,85,81,90,93,85,91,97,87,139,143,134,134,141,134,144,133,173,99,131,154,140,136,145,133,145,97,86,90,73,65,60,78,103,109,106,83,83,78,66,68,70,66,72,66,68,58,68,68,67,35,76,0,0,-12,0,0,0,-35,0,-29,0,0,0,0,27,27,27]} 1. c4 {[%emt 0:00:10]} e5 {[%emt 0:03:35]} 2. Nc3 {[%emt 0:00:38]} Nf6 {[%emt 0:00:34]} 3. Nf3 {[%emt 0:01:27]} d6 {[%emt 0:00:04]} 4. g3 {[%emt 0:02:40]} c6 {[%emt 0:02:06]} 5. Bg2 {[%emt 0:01:11]} e4 {[%emt 0:02:24]} (5... Be7 $11 {remains equal.}) 6. Nd4 $16 {[%emt 0:06:32]} d5 {[%emt 0:04:37]} 7. cxd5 {[%emt 0:03:37][%cal Od2d3]} cxd5 {[%emt 0:00:38]} 8. d3 {[%emt 0:03:12] White is better.} exd3 {[%emt 0:01:57]} 9. Qxd3 {[%emt 0:01:01]} Nc6 {[%emt 0:02:05]} 10. O-O {[%emt 0:03:19]} Nb4 {[%emt 0:04:26]} (10... Be7 $142) 11. Qd1 {[%emt 0:06:45]} Be7 {[%emt 0:01:45]} 12. Qb3 {[%emt 0:08:16]} O-O {[%emt 0:09:28]} 13. Rd1 {[%emt 0:01:00]} Bc5 {[%emt 0:02:37]} 14. Be3 {[%emt 0:10:40]} Qe7 {[%emt 0:07:12] Inhibits Ne6.} 15. Na4 {[%emt 0:07:08]} (15. Bxd5 Ng4 $11) (15. Rac1 $18) 15... Na6 {[%emt 0:00:17]} 16. Nxc5 {[%emt 0:00:26]} Nxc5 {[%emt 0:00:15]} 17. Qa3 {[%emt 0:00:42] [#] Nb3 is the strong threat.} Re8 {[%emt 0:02:36]} 18. Rac1 {[%emt 0:08:30]} b6 {[%emt 0:03:47]} 19. Nc6 {[%emt 0:01:49]} ({White should try} 19. b4 Ne6 20. Nc6) 19... Qe6 {[%emt 0:04:06]} 20. Nb4 {[%emt 0:07:23] White has more active pieces.} (20. Nxa7 Qd7 21. Nxc8 (21. Bxc5 $2 Rxa7 22. Qb3 bxc5 $19) 21... Rxa3 22. Nxb6 Qb5 23. bxa3 Rxe3 (23... Qxe2 $2 24. Bxc5 d4 25. Bxd4 $18) 24. Nxd5 Rxa3 $11 (24... Rxe2 $2 25. Nc3 $16)) 20... Bb7 {[%emt 0:04:37]} 21. Nd3 {[%emt 0:05:29]} Nxd3 {[%emt 0:03:44]} 22. Rxd3 {[%emt 0:00:40]} ({Stronger than} 22. exd3 d4 23. Bxb7 dxe3 $17) 22... Qe5 {[%emt 0:09:12] Against Rc7} 23. Bf3 {[%emt 0:01:49]} Ne4 {[%emt 0:00:47]} 24. Bd4 {[%emt 0:00:23]} (24. Bf4 {is more complex.} Qf5 25. Rc7 Nc5 26. Re3) 24... Qe7 {[%emt 0:01:04]} 25. Qxe7 {[%emt 0:01:20]} Rxe7 {[%emt 0:00:18]} 26. Be3 {[%emt 0:00:51]} f6 {[%emt 0:01:12]} 27. a4 {[%emt 0:02:48]} Kf7 {[%emt 0:00:26]} 28. b4 {[%emt 0:02:04]} Rd8 {[%emt 0:04:04]} 29. b5 {[%emt 0:06:51][%cal Oa4a5]} Ng5 {[%emt 0:01:01]} 30. Bxg5 {[%emt 0:02:07]} fxg5 {[%emt 0:00:01]} 31. Rcd1 {[%emt 0:00:11]} Red7 {[%emt 0:04:27] [#]} 32. e4 {[%emt 0:00:40]} d4 $11 {[%emt 0:00:07]} 33. h4 {[%emt 0:03:56]} h6 {[%emt 0:01:42]} 34. hxg5 {[%emt 0:00:11]} hxg5 {[%emt 0:00:05]} 35. Re1 {[%emt 0:00:47]} Re7 {[%emt 0:03:39]} 36. Bg2 {[%emt 0:00:43]} g4 {[%emt 0:00:06]} 37. e5 {[%emt 0:00:29]} Bxg2 {[%emt 0:00:53]} 38. Kxg2 {[%emt 0:00:03]} Ke6 {[%emt 0:01:01]} 39. Re4 {[%emt 0:00:14][%csl LRd4,LRg4]} Red7 {[%emt 0:00:20] White really could win this.   Weighted Error Value: White=0.11 (very precise) /Black=0.14 (very precise) .  Mistake:       	White=3     	Black=1      Inaccurate:     	White=3     	Black=6      OK:         	White=15    	Black=9      Best:        	White=1     	Black=4} 1/2-1/2

[Event "76th Montenegro Championship 2024"]
[Site "Podgorica"]
[Date "2024.02.07"]
[Round "2.3"]
[White "Nikac, Predrag"]
[Black "Djukic, Nikola"]
[Result "0-1"]
[ECO "B20"]
[WhiteElo "2304"]
[BlackElo "2529"]
[Annotator "TA"]
[PlyCount "80"]
[EventDate "2024.02.06"]
[EventType "swiss"]
[EventCountry "MNE"]
[SourceTitle "playchess.com"]
[Source "ChessBase"]
[SourceQuality "1"]
[TimeControl "40/5400+30:1800+30"]

{[%evp 9,80,-41,-52,-45,-52,-64,-58,-40,-47,-56,-49,-51,-42,-56,-54,-72,-66,-75,-68,-70,-73,-72,-63,-63,-63,-121,-115,-106,-104,-119,-116,-115,-99,-110,-108,-110,-101,-242,-244,-233,-240,-231,-178,-176,-172,-184,-177,-212,-212,-231,-232,-287,-273,-295,-289,-280,-256,-332,-325,-299,-187,-195,-197,-193,-156,-136,-140,-145,-89,-557,-524,-557,-560]} 1. e4 {[%emt 0:00:54]} c5 {[%emt 0:00:05]} 2. b3 {[%emt 0:00:38]} g6 {[%emt 0:03:13]} 3. Bb2 {[%emt 0:00:48]} Nf6 {[%emt 0:00:05]} 4. f4 {[%emt 0:02:13]} Bg7 {[%emt 0:02:11]} 5. Nf3 {[%emt 0:03:04]} O-O {[%emt 0:00:30]} 6. e5 {[%emt 0:02:08]} Nd5 {[%emt 0:02:12]} 7. g3 {[%emt 0:00:14]} d6 {[%emt 0:01:51]} 8. Bg2 {[%emt 0:05:20] Black is slightly better.} Nc6 {[%emt 0:00:18]} 9. O-O {[%emt 0:03:55]} Bg4 {[%emt 0:05:42]} 10. Qe1 {[%emt 0:04:41]} Ndb4 {[%emt 0:15:04]} 11. Na3 {[%emt 0:03:28]} Qd7 {[%emt 0:01:10]} 12. Qe3 {[%emt 0:07:51]} Rad8 {[%emt 0:04:56]} 13. d3 {[%emt 0:07:18]} Bxf3 {[%emt 0:04:34]} 14. Rxf3 {[%emt 0:06:59]} dxe5 {[%emt 0:00:40]} 15. fxe5 {[%emt 0:01:01]} Nd4 {[%emt 0:00:28]} 16. Rf2 {[%emt 0:00:46]} Nbc6 {[%emt 0:00:11] A dynamic duo of knights.} 17. c3 {[%emt 0:07:34]} (17. e6 $15 fxe6 (17... Qxe6 18. Qxe6 fxe6 19. Rxf8+ Rxf8 20. Re1 $17) (17... Nxe6 18. Bxg7 Kxg7 19. Re1 $17) 18. Rxf8+ Rxf8 19. c3) 17... Nf5 $17 {[%emt 0:02:39][%cal Bd4f5,Bf5h4,Bh4f3,Bf3d2][%mdl 32]} 18. Bxc6 {[%emt 0:03:57]} Qxc6 {[%emt 0:07:58]} (18... bxc6 19. Qxc5 Qxd3 20. Nc4 $15) 19. Qe2 {[%emt 0:03:43] [#]} Qd5 $1 {[%emt 0:03:03][%csl LRd3,LRe5]} 20. g4 {[%emt 0:04:36]} Nh4 {[%emt 0:00:20] Black has more active pieces.} 21. d4 {[%emt 0:00:42]} cxd4 {[%emt 0:00:14]} 22. cxd4 {[%emt 0:00:17]} f6 {[%emt 0:01:03]} 23. Qc4 {[%emt 0:04:46]} (23. exf6 $17 {was forced.} exf6 (23... Rxf6 24. Qc4 $17) 24. Nc2) 23... fxe5 $19 {[%emt 0:01:05]} 24. Rxf8+ {[%emt 0:00:33]} Kxf8 {[%emt 0:07:52][%csl Gh4][%cal Rd5g2]} 25. Rf1+ {[%emt 0:03:56]} Nf3+ {[%emt 0:00:51]} 26. Kg2 {[%emt 0:00:49]} e4 $40 {[%emt 0:00:05][%mdl 128] Black is out for blood.} 27. Qxd5 {[%emt 0:02:11]} Rxd5 {[%emt 0:00:06]} 28. Nc2 {[%emt 0:03:40]} Ke8 {[%emt 0:01:23]} 29. Ne3 {[%emt 0:02:49]} Ra5 {[%emt 0:01:56]} 30. a4 {[%emt 0:01:17]} Nd2 {[%emt 0:08:28]} (30... Bxd4 31. Nc4 Rd5 32. Rd1 $19) 31. Rc1 {[%emt 0:03:44]} Nxb3 {[%emt 0:00:08]} 32. Rc7 {[%emt 0:02:27]} b6 {[%emt 0:02:44]} (32... Bxd4 33. Bxd4 Nxd4 34. Rxb7 $19) 33. Bc3 {[%emt 0:00:56]} Rxa4 {[%emt 0:01:42]} 34. Nd5 {[%emt 0:01:13]} Bxd4 {[%emt 0:05:52]} (34... Nxd4 35. Rxe7+ Kf8 36. Rxe4 Ra2+ 37. Kh1 $11) 35. Rxe7+ {[%emt 0:01:06]} Kd8 {[%emt 0:01:52]} 36. Rxh7 {[%emt 0:00:41]} Bxc3 {[%emt 0:03:39]} 37. Nxc3 {[%emt 0:00:19] [#]} Rc4 {[%emt 0:00:03]} 38. Nd5 {[%emt 0:01:06]} Rd4 {[%emt 0:01:11]} 39. Ne7 {[%emt 0:00:51][%mdl 8192]} (39. Nf4 $17 Rd2+ 40. Kg3) 39... Rd6 {[%emt 0:05:04]} 40. Rg7 {[%emt 0:00:00]} e3 {[%emt 0:00:00] Weighted Error Value: White=0.34/Black=0.09 (flawless) .  Loses game:     	White=1     	---        Mistake:       	White=2     	---        Inaccurate:     	---       	Black=1      OK:         	White=13    	Black=19     Best:        	White=4     	Black=4      Strong:       	---       	Black=1} 0-1

[Event "76th Montenegro Championship 2024"]
[Site "Podgorica"]
[Date "2024.02.07"]
[Round "2.4"]
[White "Draskovic, Luka"]
[Black "Podlesnik, Bogdan"]
[Result "1-0"]
[ECO "A46"]
[WhiteElo "2481"]
[BlackElo "2284"]
[Annotator "TA"]
[PlyCount "101"]
[EventDate "2024.02.06"]
[EventType "swiss"]
[EventCountry "MNE"]
[SourceTitle "playchess.com"]
[Source "ChessBase"]
[SourceQuality "1"]
[TimeControl "40/5400+30:1800+30"]

{[%evp 9,101,0,20,21,54,53,69,66,76,65,64,60,64,63,76,67,75,0,35,33,31,22,27,28,39,12,15,21,18,0,0,-5,0,0,12,0,76,51,80,42,50,40,47,34,39,35,65,27,91,85,112,81,75,83,143,141,166,166,166,166,166,166,166,172,175,184,257,253,237,237,527,429,499,508,485,470,512,487,3329,2310,2302,2266,1930,1871,2491,1931,5600,29982,29988,29989,29989,29990,29991,29992]} 1. d4 {[%emt 0:00:04]} Nf6 {[%emt 0:00:10]} 2. Nf3 {[%emt 0:00:22]} e6 {[%emt 0:00:07]} 3. Bf4 {[%emt 0:00:40]} c5 {[%emt 0:00:45]} 4. e3 {[%emt 0:00:24]} Nc6 {[%emt 0:04:29]} 5. c3 {[%emt 0:00:57]} Qb6 {[%emt 0:12:48]} 6. Qb3 {[%emt 0:00:50]} Qxb3 {[%emt 0:01:16]} 7. axb3 {[%emt 0:00:07]} Nh5 {[%emt 0:02:41]} 8. Bc7 {[%emt 0:06:22] White is slightly better.} cxd4 {[%emt 0:04:50]} 9. Nxd4 {[%emt 0:08:55]} Nxd4 {[%emt 0:02:29]} 10. exd4 {[%emt 0:04:39]} d6 {[%emt 0:07:26]} 11. Nd2 {[%emt 0:06:51]} Nf6 {[%emt 0:06:54]} 12. Nc4 {[%emt 0:15:27] Strongly threatening Nb6.} Kd7 {[%emt 0:01:28]} 13. Ba5 {[%emt 0:04:58] White is much more active.} ({White should try} 13. Bb6 $16) 13... Nd5 {[%emt 0:02:24]} 14. Ne3 {[%emt 0:02:39]} Nc7 {[%emt 0:01:15]} 15. c4 {[%emt 0:13:57]} b6 {[%emt 0:03:11]} 16. Bc3 {[%emt 0:02:41]} Bb7 {[%emt 0:03:40]} 17. Bd3 {[%emt 0:03:16][%cal Od4d5]} d5 {[%emt 0:08:36]} 18. O-O {[%emt 0:00:14]} h5 {[%emt 0:05:04]} 19. f4 {[%emt 0:03:17]} g6 {[%emt 0:02:12]} 20. Nc2 {[%emt 0:01:03][%cal Be3c2,Bc2e1,Be1f3,Bf3g5][%mdl 32]} Be7 {[%emt 0:02:15]} 21. Ne1 {[%emt 0:00:52]} Bd6 {[%emt 0:05:36]} 22. Nf3 {[%emt 0:02:02]} f5 {[%emt 0:06:46]} (22... a5 $11 {remains equal.}) 23. Ng5 {[%emt 0:05:04]} Rhf8 {[%emt 0:02:19]} 24. h4 {[%emt 0:01:57]} Bc6 {[%emt 0:02:24]} 25. g3 {[%emt 0:00:25]} Be7 {[%emt 0:01:09]} 26. Nf3 {[%emt 0:01:14] Ne5+ is the strong threat.} Bf6 {[%emt 0:00:05]} 27. Kf2 {[%emt 0:01:19]} (27. Be2 {simplifies} a5 28. Rfc1 a4 29. cxd5 Nxd5 30. bxa4 Rxa4 31. Rxa4 Bxa4 32. Ra1) 27... Rfd8 {[%emt 0:01:42]} 28. Ke3 {[%emt 0:02:25]} Ke7 {[%emt 0:01:17]} (28... dxc4 $11 {keeps the balance.} 29. bxc4 Bxf3 30. Rxf3 (30. Kxf3 Ke7 $14) 30... a5) 29. Bb4+ $16 {[%emt 0:01:36]} Kf7 {[%emt 0:01:03]} 30. Ne5+ {[%emt 0:00:54]} Bxe5 {[%emt 0:00:05]} 31. fxe5 {[%emt 0:00:05]} a5 {[%emt 0:01:38] Black is weak on the dark squares} (31... dxc4 $142 32. bxc4 a5) 32. Bd6 {[%emt 0:00:51]} Ne8 {[%emt 0:00:08] [#]} 33. c5 {[%emt 0:06:14]} b5 {[%emt 0:04:09] [#]} 34. Ra2 $1 {[%emt 0:00:13]} Rd7 {[%emt 0:00:16]} 35. Rfa1 {[%emt 0:00:05]} Rda7 {[%emt 0:00:11] [#]} 36. b4 $1 {[%emt 0:00:22][%mdl 512]} a4 {[%emt 0:00:22]} 37. Ra3 {[%emt 0:00:17]} Nc7 {[%emt 0:02:50]} (37... f4+ {keeps fighting.} 38. Kd2 (38. Kxf4 Ng7 $18) 38... Ng7) 38. Bxc7 {[%emt 0:04:25]} Rxc7 {[%emt 0:00:01]} 39. b3 {[%emt 0:00:07]} Rb8 $2 {[%emt 0:00:59]} (39... Rb7 40. Kf4 Kg7) 40. bxa4 $18 {[%emt 0:00:00]} bxa4 {[%emt 0:00:00]} 41. Rxa4 {[%emt 0:03:44]} (41. Rb1 Rcb7 $18) 41... Bxa4 {[%emt 0:00:16]} 42. Rxa4 {[%emt 0:00:05][%mdl 4096] Endgame. KRR-KRB} Rcb7 {[%emt 0:00:19]} 43. b5 {[%emt 0:04:02]} Rxb5 {[%emt 0:00:07]} (43... g5 $142 44. b6 (44. hxg5 Rxb5 45. Bxb5 Rxb5 $18) 44... f4+ 45. gxf4 gxh4) 44. Bxb5 {[%emt 0:00:04]} Rxb5 {[%emt 0:00:05] KR-KR} 45. Ra7+ {[%emt 0:00:05]} Ke8 {[%emt 0:00:33]} 46. Kf4 {[%emt 0:01:03]} Rb4 {[%emt 0:01:20]} 47. Kg5 {[%emt 0:00:27]} Rxd4 {[%emt 0:00:29]} 48. Kf6 {[%emt 0:00:05]} Rd3 {[%emt 0:01:17] White mates.} 49. Kxe6 {[%emt 0:00:07][%cal Ra7a8]} Kd8 {[%emt 0:00:19]} 50. Kd6 {[%emt 0:00:05][%cal Ra7a8]} Kc8 {[%emt 0:00:23]} 51. c6 {[%emt 0:00:06] Weighted Error Value: White=0.09 (flawless) /Black=0.26 (precise) .  Mistake:       	White=1     	Black=6      Inaccurate:     	White=4     	Black=5      OK:         	White=12    	Black=12     Best:        	White=4     	Black=3      Strong:       	White=1     	---        Brilliant:      	White=1     	---} 1-0

[Event "76th Montenegro Championship 2024"]
[Site "Podgorica"]
[Date "2024.02.07"]
[Round "2.5"]
[White "Vukcevic, Nemanja"]
[Black "Kalezic, Blazo"]
[Result "1-0"]
[ECO "C02"]
[WhiteElo "2275"]
[BlackElo "2407"]
[Annotator "RC"]
[PlyCount "135"]
[EventDate "2024.02.06"]
[EventType "swiss"]
[EventCountry "MNE"]
[SourceTitle "playchess.com"]
[Source "ChessBase"]
[SourceQuality "1"]
[TimeControl "40/5400+30:1800+30"]

1. e4 {[%emt 0:00:18]} e6 {[%emt 0:00:54]} 2. d4 {[%emt 0:00:07]} d5 {[%emt 0:00:10]} 3. e5 {[%emt 0:00:26]} c5 {[%emt 0:00:13]} 4. c3 {[%emt 0:00:05]} Nc6 {[%emt 0:00:08]} 5. Nf3 {[%emt 0:00:06]} Qb6 {[%emt 0:00:08]} 6. Bd3 {[%emt 0:00:20]} Bd7 {[%emt 0:00:12]} 7. O-O {[%emt 0:00:11]} cxd4 {[%emt 0:00:52]} 8. Re1 {[%emt 0:00:11]} Nge7 {[%emt 0:07:47]} 9. h4 {[%emt 0:00:07]} a6 {[%emt 0:01:15]} 10. Nbd2 {[%emt 0:12:21]} Nf5 {[%emt 0:10:05]} 11. c4 {[%emt 0:11:07]} Ne3 {[%emt 0:03:38]} 12. Qe2 {[%emt 0:09:37]} dxc4 {[%emt 0:00:38]} 13. Be4 {[%emt 0:04:32]} Ng4 {[%emt 0:20:38]} 14. Nxc4 {[%emt 0:04:04]} Qc7 {[%emt 0:01:07]} 15. Bf4 {[%emt 0:03:16]} h5 {[%emt 0:04:05]} 16. Rac1 {[%emt 0:01:58]} Rc8 {[%emt 0:05:47]} 17. Ng5 {[%emt 0:03:37]} b5 {[%emt 0:03:23]} 18. Nd6+ {[%emt 0:14:16]} Bxd6 {[%emt 0:00:25]} 19. exd6 {[%emt 0:05:18]} Qb6 {[%emt 0:00:39]} 20. Qd3 {[%emt 0:01:24]} Nf6 {[%emt 0:05:04]} 21. Bf3 {[%emt 0:05:57]} Nb4 {[%emt 0:08:01]} 22. Rxc8+ {[%emt 0:01:29]} Bxc8 {[%emt 0:00:18]} 23. Qb3 {[%emt 0:00:47]} a5 {[%emt 0:02:22]} 24. a3 {[%emt 0:03:06]} Na6 {[%emt 0:02:46]} 25. Be5 {[%emt 0:01:49]} Bd7 {[%emt 0:02:27]} 26. Qd3 {[%emt 0:01:27]} Nb8 {[%emt 0:01:30]} 27. Rc1 {[%emt 0:01:41]} Na6 {[%emt 0:04:59]} 28. Qxd4 {[%emt 0:04:19]} Qxd4 {[%emt 0:00:27]} 29. Bxd4 {[%emt 0:00:01]} O-O {[%emt 0:00:38]} 30. Bb7 {[%emt 0:00:49]} Nb8 {[%emt 0:00:25]} 31. Bxf6 {[%emt 0:01:50]} gxf6 {[%emt 0:00:09]} 32. Ne4 {[%emt 0:00:03]} f5 {[%emt 0:02:14]} 33. Nf6+ {[%emt 0:00:50]} Kg7 {[%emt 0:00:08]} 34. Nxh5+ {[%emt 0:00:12]} Kg6 {[%emt 0:00:10]} 35. Nf4+ {[%emt 0:00:19]} Kf6 {[%emt 0:00:07]} 36. Nd3 {[%emt 0:02:23]} e5 {[%emt 0:01:07]} 37. Rc5 {[%emt 0:01:31]} Re8 {[%emt 0:00:16]} 38. f4 {[%emt 0:00:37]} exf4 {[%emt 0:00:58]} 39. Nxf4 {[%emt 0:00:17]} Re1+ {[%emt 0:00:34]} 40. Kf2 {[%emt 0:00:00]} Rb1 {[%emt 0:00:00]} 41. Nd3 {[%emt 0:04:47]} Rd1 {[%emt 0:04:08]} 42. Ke2 {[%emt 0:03:41]} Rh1 {[%emt 0:00:39]} 43. g3 {[%emt 0:00:50]} Rh2+ {[%emt 0:00:40]} 44. Ke3 {[%emt 0:00:56]} Ke6 {[%emt 0:00:52]} 45. Rd5 {[%emt 0:01:27]} Kf6 {[%emt 0:01:33]} 46. Nf2 {[%emt 0:02:06]} a4 {[%emt 0:01:38]} 47. Rd2 {[%emt 0:01:19]} Ke6 {[%emt 0:00:27]} 48. Bd5+ {[%emt 0:01:50]} Kxd6 {[%emt 0:00:10]} 49. Bxf7+ {[%emt 0:00:52]} Ke7 {[%emt 0:00:48]} 50. Bd5 {[%emt 0:00:47]} Nc6 {[%emt 0:01:39]} 51. Nd3 {[%emt 0:06:03]} Rxd2 {[%emt 0:03:00]} 52. Kxd2 {[%emt 0:00:04]} Nd4 {[%emt 0:01:13]} 53. Ke3 {[%emt 0:00:36]} Nc2+ {[%emt 0:00:24]} 54. Kf4 {[%emt 0:00:11]} Kf6 {[%emt 0:00:05]} 55. Ne5 {[%emt 0:01:59]} Be8 {[%emt 0:00:24]} 56. Bc6 {[%emt 0:02:00]} Bh5 {[%emt 0:03:31]} 57. Bxb5 {[%emt 0:00:43]} Nd4 {[%emt 0:00:10]} 58. Nd7+ {[%emt 0:04:01]} Ke6 {[%emt 0:01:25]} 59. Bxa4 {[%emt 0:00:08]} Ne2+ {[%emt 0:00:13]} 60. Ke3 {[%emt 0:00:49]} Nxg3 {[%emt 0:00:10]} 61. Nc5+ {[%emt 0:00:36]} Kf6 {[%emt 0:00:50]} 62. b4 {[%emt 0:01:05]} Nf1+ {[%emt 0:00:25]} 63. Kf4 {[%emt 0:00:10]} Nd2 {[%emt 0:00:12]} 64. b5 {[%emt 0:01:05]} Nc4 {[%emt 0:00:41]} 65. Bb3 {[%emt 0:01:23]} Ne5 {[%emt 0:00:19]} 66. b6 {[%emt 0:00:56]} Ng6+ {[%emt 0:00:07]} 67. Ke3 {[%emt 0:00:43]} f4+ {[%emt 0:00:07]} 68. Kf2 {[%emt 0:00:52]} 1-0

[Event "76th Montenegro Championship 2024"]
[Site "Podgorica"]
[Date "2024.02.07"]
[Round "2.6"]
[White "Smirnov, Artem"]
[Black "Zherebtsova, Alexandra"]
[Result "1-0"]
[ECO "E14"]
[WhiteElo "2406"]
[BlackElo "2270"]
[Annotator "TA"]
[PlyCount "50"]
[EventDate "2024.02.06"]
[EventType "swiss"]
[EventCountry "MNE"]
[SourceTitle "playchess.com"]
[Source "ChessBase"]
[SourceQuality "1"]
[TimeControl "40/5400+30:1800+30"]

{[%evp 11,50,41,40,31,59,56,76,50,80,110,119,114,105,125,209,209,271,263,387,395,401,391,368,367,792,779,1132,1118,1013,967,991,992,1293,1271,2266,2267,2235,2234,6441,4006,29999]} 1. d4 {[%emt 0:00:15]} Nf6 {[%emt 0:06:58]} 2. Nf3 {[%emt 0:00:32]} e6 {[%emt 0:03:25]} 3. e3 {[%emt 1:31:13][%cal Be2e3,Be3d4,Bd4d5][%mdl 32]} c5 {[%emt 1:21:37]} 4. Bd3 {[%emt 0:00:30]} Nc6 {[%emt 0:00:30]} 5. O-O {[%emt 0:00:30]} b6 {[%emt 0:00:30]} 6. c4 {[%emt 0:00:30]} Bb7 {[%emt 0:00:30]} 7. Nc3 {[%emt 0:00:30]} cxd4 {[%emt 0:00:30]} 8. exd4 {[%emt 0:00:00]} Rc8 {[%emt 0:00:00]} 9. d5 {[%emt 0:00:00] White is better.} Na5 {[%emt 0:00:00][%csl LRc4,LRd5]} 10. Qe2 {[%emt 0:00:00]} Bb4 {[%emt 0:00:00]} 11. Nb5 {[%emt 0:00:00][%cal Oa2a3] a3! would now be deadly.} a6 {[%emt 0:00:00]} 12. Nbd4 {[%emt 0:00:00] White is more active.} Qc7 {[%emt 0:00:00]} (12... b5 $16) 13. Bg5 $18 {[%emt 0:00:00]} Be7 {[%emt 0:00:00]} (13... Nxc4 14. dxe6 dxe6 15. Rac1 $18 (15. Nxe6 fxe6 16. Rfc1 b5 $14)) 14. Rac1 {[%emt 0:00:00]} Ba8 {[%emt 0:00:00] [#]} (14... Qd8 $142 15. Bxf6 gxf6) 15. Nf5 $1 {[%emt 0:00:00][%mdl 512]} exf5 {[%emt 0:00:00]} 16. Bxf6 {[%emt 0:00:00]} (16. Bxf5 Kf8 $14) 16... gxf6 {[%emt 0:00:00]} 17. Rfe1 {[%emt 0:00:00][%csl Ge1][%cal Re2e7]} ({Worse is} 17. Bxf5 Kf8 18. Qe4 Qd6 $11) 17... d6 $2 {[%emt 0:00:00]} (17... Qc5 18. a3 (18. Bxf5 Kd8 $16) 18... Nb3) 18. Nd4 {[%emt 0:00:00] White is clearly winning.} Qd8 {[%emt 0:00:00]} 19. Nxf5 {[%emt 0:00:00]} Rc7 {[%emt 0:00:00]} 20. b4 {[%emt 0:00:00]} Nc6 {[%emt 0:00:48]} 21. dxc6 {[%emt 0:00:00] [#] Threatens to win with Qg4.} Bxc6 {[%emt 0:00:02]} 22. Qg4 {[%emt 0:00:30]} h5 {[%emt 0:01:50]} 23. Qg7 {[%emt 0:00:42][%csl LRf6,LRh8]} Rf8 {[%emt 0:00:05]} 24. Qxf6 {[%emt 0:02:48] Ng7+ would kill now.} Rg8 {[%emt 0:00:40]} 25. Nxd6+ {[%emt 0:02:16]} ({Inferior is} 25. Qxd6 Qxd6 26. Nxd6+ Kf8 $17) 25... Kd7 {[%emt 0:05:35] White took control after the opening.   Weighted Error Value: White=0.02 (flawless) /Black=0.55.  Mistake:       	---       	Black=3      Inaccurate:     	White=1     	Black=3      OK:         	White=8     	Black=2      Best:        	White=1     	---} 1-0